bitfinex/quotes_BTCUSD_20250530
["timestamp","ask_amount","ask_price","bid_price","bid_amount"]
[1748619719851,0.01095636,105620.0,105610.0,0.6760396]
[1748619720074,0.00148909,105620.0,105610.0,0.6665708]
[1748619720292,0.00048909,105620.0,105610.0,1.21480176]
[1748619720560,0.01942372,105620.0,105610.0,1.21680194]
[1748619720767,0.01942372,105620.0,105610.0,1.22627065]
[1748619720975,0.01942372,105620.0,105610.0,1.21680194]
[1748619721186,0.0383588,105620.0,105610.0,1.20733314]
[1748619721394,0.02889117,105620.0,105610.0,1.20733314]
[1748619721624,0.02889117,105620.0,105610.0,1.21880185]
[1748619721828,0.03835889,105620.0,105610.0,1.20933314]
[1748619722038,0.0383588,105620.0,105610.0,0.6705708]
[1748619722246,0.0383588,105620.0,105610.0,0.6800396]
[1748619722658,0.0383588,105620.0,105610.0,0.6705708]
[1748619723460,0.0383588,105620.0,105610.0,0.3305708]
[1748619723875,0.22771696,105620.0,105610.0,0.2989708]
[1748619724112,0.21825014,105620.0,105610.0,0.2989708]
[1748619724296,0.02889207,105620.0,105610.0,0.3145708]
[1748619724502,0.02889207,105620.0,105610.0,0.1251948]
[1748619724916,0.20878269,105620.0,105610.0,0.1403948]
[1748619725740,0.19931497,105620.0,105610.0,0.1403948]
[1748619726346,0.19931497,105620.0,105610.0,0.1251948]
[1748619727207,0.19931497,105620.0,105610.0,0.09505395]
[1748619730689,0.19931497,105620.0,105610.0,0.11115395]
[1748619730947,0.19931497,105620.0,105610.0,0.11352084]
[1748619731731,0.00995654,105620.0,105610.0,1.2397953]
[1748619731967,0.00048909,105620.0,105610.0,1.23742841]
[1748619732088,0.00995627,105620.0,105610.0,1.23742841]
[1748619732283,0.01942363,105620.0,105610.0,1.23742841]
[1748619732484,0.00995627,105620.0,105610.0,1.23742841]
[1748619732690,0.00048909,105620.0,105610.0,1.23742841]
[1748619733000,0.00995636,105620.0,105610.0,1.23742841]
[1748619733245,0.00048909,105620.0,105610.0,1.33422841]
[1748619733492,0.00995618,105620.0,105610.0,1.33422841]
[1748619733744,0.00048909,105620.0,105610.0,0.80667612]
[1748619733963,0.01942345,105620.0,105610.0,1.34422841]
[1748619734230,0.00995618,105620.0,105610.0,1.34422841]
[1748619734462,0.00048909,105620.0,105610.0,1.34422841]
[1748619735403,0.00048909,105620.0,105610.0,1.21902309]
[1748619735573,0.00048909,105620.0,105610.0,1.64774841]
[1748619735574,0.00995618,105620.0,105610.0,1.64774841]
[1748619736789,0.00048909,105620.0,105610.0,1.64774841]
[1748619737215,0.01942345,105620.0,105610.0,1.64774841]
[1748619737648,0.00995618,105620.0,105610.0,1.64774841]
[1748619737870,0.01942336,105620.0,105610.0,1.64774841]
[1748619738079,0.04782661,105620.0,105610.0,1.07428813]
[1748619738292,0.04782652,105620.0,105610.0,1.09038822]
[1748619738737,0.23718459,105620.0,105610.0,0.69010822]
[1748619738920,0.23718459,105620.0,105610.0,0.43505395]
[1748619738921,0.2087826,105620.0,105610.0,0.43505395]
[1748619739187,0.2087826,105620.0,105610.0,0.4495948]
[1748619741259,0.2087826,105620.0,105610.0,0.1095948]
[1748619741479,0.23320315,105620.0,105610.0,0.1095948]
[1748619741721,0.21760315,105620.0,105610.0,0.1095948]
[1748619741929,0.2087826,105620.0,105610.0,0.4495948]
[1748619742154,0.21760411,105620.0,105610.0,0.4495948]
[1748619742381,0.21760409,105620.0,105610.0,0.6389708]
[1748619742603,0.2087826,105620.0,105610.0,0.4495948]
[1748619743110,0.00995672,105620.0,105610.0,0.67330813]
[1748619743291,0.00995618,105620.0,105610.0,1.34195703]
[1748619743566,0.01942345,105620.0,105610.0,1.34195703]
[1748619743775,0.00048909,105620.0,105610.0,1.34195703]
[1748619743992,0.00048909,105620.0,105610.0,1.35195703]
[1748619745613,0.00995618,105620.0,105610.0,1.35195703]
[1748619745852,0.00048909,105620.0,105610.0,1.35195703]
[1748619746064,0.00995627,105620.0,105610.0,1.35195703]
[1748619746703,0.00048909,105620.0,105610.0,1.35195703]
[1748619746915,0.00048909,105620.0,105610.0,6.47310303]
[1748619747408,0.00048909,105620.0,105610.0,6.17600303]
[1748619747827,0.00048909,105620.0,105610.0,6.17200303]
[1748619748010,0.00048909,105620.0,105610.0,6.17600303]
[1748619748218,0.00048909,105620.0,105610.0,6.18000303]
[1748619750298,0.00048909,105620.0,105610.0,5.34049503]
[1748619750524,0.00048909,105620.0,105610.0,4.81600203]
[1748619750923,0.00048909,105620.0,105610.0,4.81706303]
[1748619751388,0.00048909,105620.0,105610.0,3.01131586]
[1748619751602,0.00995627,105620.0,105610.0,2.03147403]
[1748619751815,0.00048909,105620.0,105610.0,2.03147403]
[1748619752027,0.00048909,105620.0,105610.0,2.04650488]
[1748619752682,0.00048909,105620.0,105610.0,1.99650488]
[1748619752906,0.00048909,105620.0,105610.0,2.04650488]
[1748619754020,0.21542033,105660.0,105650.0,0.19876951]
[1748619754219,0.01830413,105660.0,105650.0,0.30436413]
[1748619754425,0.20821448,105660.0,105650.0,0.1055948]
[1748619754630,0.20821448,105660.0,105650.0,0.1079607]
[1748619754631,0.19875061,105660.0,105650.0,0.1079607]
[1748619755065,0.0189281,105660.0,105650.0,0.30873012]
[1748619755278,0.20821475,105660.0,105650.0,0.1075948]
[1748619755480,0.20821475,105660.0,105650.0,0.13519783]
[1748619755889,0.20821475,105660.0,105650.0,0.16356344]
[1748619756316,0.20821475,105660.0,105650.0,0.13383193]
[1748619757121,0.20821475,105660.0,105650.0,0.1085948]
[1748619758004,0.20821475,105660.0,105650.0,0.6378991]
[1748619758211,0.20821458,105660.0,105650.0,1.23594639]
[1748619758421,0.21767854,105660.0,105650.0,0.4641948]
[1748619758634,0.20821458,105660.0,105650.0,0.47366001]
[1748619758870,0.20821458,105660.0,105650.0,0.49287362]
[1748619759066,0.20821458,105660.0,105650.0,0.48340841]
[1748619759346,0.19875053,105660.0,105650.0,0.48340841]
[1748619759549,0.19875053,105660.0,105650.0,0.46780841]
[1748619759763,0.19875053,105660.0,105650.0,0.47708184]
[1748619760881,0.21385053,105660.0,105650.0,0.46254099]
[1748619761566,0.22935053,105660.0,105650.0,0.46254099]
[1748619762227,0.22935053,105660.0,105650.0,0.35227343]
[1748619763570,0.21385053,105660.0,105650.0,0.35227343]
[1748619763795,0.19875053,105660.0,105650.0,0.44332738]
[1748619764014,0.19875053,105660.0,105650.0,0.45786823]
[1748619766174,0.19875053,105660.0,105650.0,0.85762823]
[1748619769205,0.19875053,105660.0,105650.0,0.87272823]
[1748619770604,0.19875053,105660.0,105650.0,0.53272823]
[1748619771978,0.19875053,105660.0,105650.0,0.87272823]
[1748619772142,0.19875053,105660.0,105650.0,0.88882823]
[1748619772349,0.19875053,105660.0,105650.0,0.87272823]
[1748619773808,0.19875053,105660.0,105650.0,0.85762823]
[1748619775647,0.19875053,105660.0,105650.0,0.55446823]
[1748619775869,0.19875053,105660.0,105650.0,0.85750823]
[1748619779252,0.19875053,105660.0,105650.0,0.87360823]
[1748619779690,0.21485053,105660.0,105650.0,0.45786823]
[1748619781259,0.19875053,105660.0,105650.0,0.45786823]
[1748619782754,0.21455053,105660.0,105650.0,0.45786823]
[1748619783384,0.19875053,105660.0,105650.0,0.45786823]
[1748619786437,0.21485053,105660.0,105650.0,0.10332738]
[1748619786653,0.23065053,105660.0,105650.0,0.44332738]
[1748619786868,0.19875053,105660.0,105650.0,0.44332738]
[1748619788534,0.19875053,105660.0,105650.0,0.45786823]
[1748619788734,0.19875053,105660.0,105650.0,1.22509893]
[1748619788933,0.19875053,105660.0,105650.0,1.23456387]
[1748619789157,0.29346979,105670.0,105660.0,0.58459155]
[1748619789362,0.29346979,105670.0,105660.0,1.22227083]
[1748619789581,0.01892585,105670.0,105660.0,1.62163083]
[1748619789802,0.01892585,105670.0,105660.0,2.22847348]
[1748619790015,0.0189254,105670.0,105660.0,2.47631214]
[1748619790223,0.02838837,105670.0,105660.0,2.48185815]
[1748619790432,0.02938837,105670.0,105660.0,2.18475815]
[1748619790633,0.02938828,105670.0,105660.0,2.18475815]
[1748619790838,0.03885125,105670.0,105660.0,2.17529455]
[1748619791044,0.18819742,105680.0,105660.0,2.18475815]
[1748619791255,0.18819742,105680.0,105670.0,1.20698992]
[1748619791458,0.18819742,105680.0,105670.0,1.21408779]
[1748619791894,0.18819742,105680.0,105670.0,1.02481941]
[1748619792109,0.18819742,105680.0,105670.0,1.22355121]
[1748619792959,0.18819742,105680.0,105670.0,1.21408788]
[1748619793166,0.18919742,105680.0,105670.0,1.21408788]
[1748619793374,0.18919742,105680.0,105670.0,1.01535599]
[1748619793579,0.18919742,105680.0,105670.0,1.02481941]
[1748619793790,0.18919742,105680.0,105670.0,0.4781948]
[1748619794614,0.18919742,105680.0,105670.0,0.4616948]
[1748619795441,0.18919742,105680.0,105670.0,0.66042669]
[1748619795647,0.18919742,105680.0,105670.0,0.48675822]
[1748619795852,0.18919742,105680.0,105670.0,0.4772948]
[1748619797780,0.18919742,105680.0,105670.0,0.4455948]
[1748619798274,0.14919742,105680.0,105670.0,0.4455948]
[1748619798961,0.16469742,105680.0,105670.0,0.4455948]
[1748619799161,0.14919742,105680.0,105670.0,0.4455948]
[1748619800352,0.14919742,105680.0,105670.0,0.4612948]
[1748619801843,0.14919742,105680.0,105670.0,0.4763948]
[1748619802895,0.14919742,105680.0,105670.0,0.8447548]
[1748619803404,0.16559742,105680.0,105670.0,0.8447548]
[1748619803617,0.16559742,105680.0,105670.0,0.5420348]
[1748619805335,0.12559742,105680.0,105670.0,0.5420348]
[1748619806495,0.10919742,105680.0,105670.0,0.5420348]
[1748619806896,0.10919742,105680.0,105670.0,0.5583348]
[1748619807513,0.20917533,105680.0,105670.0,1.32835382]
[1748619807719,0.21863723,105680.0,105670.0,1.31889103]
[1748619807923,0.22809966,105680.0,105670.0,1.32835409]
[1748619808332,0.21863758,105680.0,105670.0,1.31889103]
[1748619808539,0.20917533,105680.0,105670.0,1.62153103]
[1748619809370,0.20917533,105680.0,105670.0,1.63099418]
[1748619809602,0.20917533,105680.0,105670.0,1.62153103]
[1748619809755,0.20917533,105680.0,105670.0,1.64045724]
[1748619810163,0.01992477,105680.0,105670.0,1.64045724]
[1748619810378,0.01992477,105680.0,105670.0,1.64992003]
[1748619810578,0.21863785,105680.0,105670.0,1.64992021]
[1748619811369,0.21863785,105680.0,105670.0,1.64045724]
[1748619812482,0.17863785,105680.0,105670.0,1.64045724]
[1748619813117,0.18810019,105680.0,105670.0,1.63099418]
[1748619813964,0.17863785,105680.0,105670.0,1.62153103]
[1748619814386,0.17863785,105680.0,105670.0,1.08436984]
[1748619814808,0.17863785,105680.0,105670.0,1.10329605]
[1748619815021,0.17863785,105680.0,105670.0,1.09383299]
[1748619815650,0.17863785,105680.0,105670.0,1.64045715]
[1748619815869,0.0189246,105680.0,105670.0,1.64991994]
[1748619816283,0.0189246,105680.0,105670.0,1.66492955]
[1748619816566,0.20817516,105680.0,105670.0,1.65546667]
[1748619816773,0.20817516,105680.0,105670.0,1.65546676]
[1748619818030,0.20817516,105680.0,105670.0,1.6460037]
[1748619818269,0.20817516,105680.0,105670.0,1.65546676]
[1748619818866,0.21763768,105680.0,105670.0,1.66492973]
[1748619819076,0.21763768,105680.0,105670.0,1.6460037]
[1748619819412,0.17763768,105680.0,105670.0,1.6460037]
[1748619819594,0.18709985,105680.0,105670.0,1.65546676]
[1748619821185,0.19656228,105680.0,105670.0,1.65546676]
[1748619822006,0.19656228,105680.0,105670.0,1.6460037]
[1748619822430,0.17763768,105680.0,105670.0,1.41294551]
[1748619822658,0.17763768,105680.0,105670.0,0.87578432]
[1748619822872,0.19303768,105680.0,105670.0,0.85948432]
[1748619823087,0.19303768,105680.0,105670.0,1.06767954]
[1748619823349,0.19303768,105680.0,105670.0,1.05821621]
[1748619823561,0.19303768,105680.0,105670.0,1.07714278]
[1748619823766,0.19303768,105680.0,105670.0,1.06767954]
[1748619823976,0.21411308,105680.0,105670.0,1.06767954]
[1748619824183,0.20817533,105680.0,105670.0,1.10160575]
[1748619824385,0.20817533,105680.0,105670.0,1.10854269]
[1748619825784,0.20817533,105680.0,105670.0,1.08961621]
[1748619825981,0.20817533,105680.0,105670.0,0.87448432]
[1748619826188,0.19871308,105680.0,105670.0,1.06375279]
[1748619826389,0.19871308,105680.0,105670.0,0.87448432]
[1748619826600,0.15871308,105680.0,105670.0,0.88394774]
[1748619826810,0.15871308,105680.0,105670.0,0.87448432]
[1748619827334,0.15871308,105680.0,105670.0,0.55704432]
[1748619827548,0.17411308,105680.0,105670.0,0.85940432]
[1748619829122,0.17416201,105680.0,105670.0,0.85940432]
[1748619830000,0.15876201,105680.0,105670.0,0.85940432]
[1748619830208,0.15876201,105680.0,105670.0,1.41206551]
[1748619831237,0.15876201,105680.0,105670.0,0.85940432]
[1748619831850,0.17496201,105680.0,105670.0,0.85940432]
[1748619833545,0.13496201,105680.0,105670.0,0.85940432]
[1748619834174,0.13496201,105680.0,105670.0,0.8443948]
[1748619835011,0.11876201,105680.0,105670.0,0.8443948]
[1748619835431,0.11876201,105680.0,105670.0,0.8594948]
[1748619836272,0.11876201,105680.0,105670.0,0.87450432]
[1748619839991,0.11876201,105680.0,105670.0,0.85940432]
[1748619840603,0.07876201,105680.0,105670.0,0.89060432]
[1748619841212,0.07876201,105680.0,105670.0,0.87450432]
[1748619841625,0.09376201,105680.0,105670.0,0.56831671]
[1748619841830,0.10996201,105680.0,105670.0,0.55377586]
[1748619842363,0.10996201,105680.0,105670.0,0.53876634]
[1748619843210,0.10996201,105680.0,105670.0,0.44232634]
[1748619843369,0.10996201,105680.0,105670.0,0.35127239]
[1748619845082,0.10996201,105680.0,105670.0,0.44232634]
[1748619848878,0.06996201,105680.0,105670.0,0.44232634]
[1748619850362,0.05376201,105680.0,105670.0,0.44232634]
[1748619851083,0.06916201,105680.0,105670.0,0.44232634]
[1748619853751,0.05376201,105680.0,105670.0,0.44232634]
[1748619854789,0.03876201,105680.0,105670.0,0.45842634]
[1748619855019,0.03876201,105680.0,105670.0,0.47392634]
[1748619855641,0.03876201,105680.0,105670.0,0.45842634]
[1748619856050,0.20387482,105690.0,105670.0,0.45842634]
[1748619856271,0.18925056,105680.0,105670.0,0.45842634]
[1748619858747,0.18925056,105680.0,105670.0,0.47392634]
[1748619858963,0.19871299,105680.0,105670.0,1.23382333]
[1748619859191,0.19871299,105680.0,105670.0,1.24883285]
[1748619859535,0.20817516,105680.0,105670.0,1.25829591]
[1748619859735,0.21763768,105680.0,105670.0,1.26775888]
[1748619859936,0.21763768,105680.0,105670.0,1.25829591]
[1748619860335,0.21763768,105680.0,105670.0,1.24702352]
[1748619860551,0.21763697,105680.0,105670.0,1.24702352]
[1748619862163,0.02838641,105680.0,105670.0,1.26594928]
[1748619862363,0.2270994,105680.0,105670.0,1.25648649]
[1748619862587,0.23656192,105680.0,105670.0,1.28355785]
[1748619862870,0.21763785,105680.0,105670.0,1.24702352]
[1748619863070,0.17763785,105680.0,105670.0,1.26463174]
[1748619863276,0.17763785,105680.0,105670.0,1.24702352]
[1748619863487,0.17763785,105680.0,105670.0,1.25829256]
[1748619863725,0.17763785,105680.0,105670.0,1.26775544]
[1748619863950,0.18807482,105690.0,105680.0,0.56925384]
[1748619864154,0.18807482,105690.0,105680.0,1.63861833]
[1748619864353,0.18807482,105690.0,105680.0,1.43044279]
[1748619864528,0.18807482,105690.0,105680.0,1.61154907]
[1748619864733,0.18807482,105690.0,105680.0,1.4241036]
[1748619865148,0.18807482,105690.0,105680.0,1.4079036]
[1748619865349,0.18807482,105690.0,105680.0,1.42551014]
[1748619865556,0.18907482,105690.0,105680.0,1.42551014]
[1748619866295,0.18907482,105690.0,105680.0,1.42551024]
[1748619866428,0.18907482,105690.0,105680.0,1.42551582]
[1748619866631,0.18907482,105690.0,105680.0,1.42551818]
[1748619866989,0.18907482,105690.0,105680.0,1.42551893]
[1748619867127,0.18907482,105690.0,105680.0,1.42551901]
[1748619867331,0.18907482,105690.0,105680.0,1.42551812]
[1748619867552,0.18907482,105690.0,105680.0,0.58647693]
[1748619867760,0.20547482,105690.0,105680.0,0.55593638]
[1748619867964,0.22097482,105690.0,105680.0,0.55593638]
[1748619868163,0.22097482,105690.0,105680.0,0.36888363]
[1748619868373,0.22097482,105690.0,105680.0,0.01126761]
[1748619868580,0.1987129,105680.0,105670.0,0.35126761]
[1748619868794,0.2305129,105680.0,105670.0,0.45993944]
[1748619869007,0.2305129,105680.0,105670.0,0.44232156]
[1748619869952,0.2305129,105680.0,105670.0,0.45994122]
[1748619870165,0.1905129,105680.0,105670.0,0.44232156]
[1748619870306,0.19997524,105680.0,105670.0,0.44232156]
[1748619871144,0.18397524,105680.0,105670.0,0.44232156]
[1748619871354,0.20047524,105680.0,105670.0,0.45994166]
[1748619871593,0.20047524,105680.0,105670.0,0.45994169]
[1748619871809,0.20047524,105680.0,105670.0,0.44232156]
[1748619871999,0.20047524,105680.0,105670.0,0.4599417]
[1748619872212,0.20047524,105680.0,105670.0,0.44232156]
[1748619872389,0.20047524,105680.0,105670.0,0.45994228]
[1748619872804,0.20047524,105680.0,105670.0,0.45994214]
[1748619873167,0.20047524,105680.0,105670.0,0.45994204]
[1748619873577,0.20047524,105680.0,105670.0,0.44232156]
[1748619875266,0.20047524,105680.0,105670.0,0.4599425]
[1748619875465,0.20047524,105680.0,105670.0,0.44232156]
[1748619876476,0.20047524,105680.0,105670.0,0.45994152]
[1748619876686,0.20047524,105680.0,105670.0,0.44232156]
[1748619877097,0.20047524,105680.0,105670.0,0.10232156]
[1748619877390,0.16047524,105680.0,105670.0,0.10232156]
[1748619879285,0.16047524,105680.0,105670.0,0.44232156]
[1748619881188,0.14397524,105680.0,105670.0,0.44232156]
[1748619882067,0.12817524,105680.0,105670.0,0.44232156]
[1748619882472,0.13763749,105680.0,105670.0,1.23371846]
[1748619883133,0.13763749,105680.0,105670.0,1.23371864]
[1748619883343,0.13763749,105680.0,105670.0,1.24318179]
[1748619883751,0.13763749,105680.0,105670.0,1.25819131]
[1748619884166,0.13763749,105680.0,105670.0,1.26765437]
[1748619884408,0.09763749,105680.0,105670.0,1.26765437]
[1748619885172,0.09763749,105680.0,105670.0,1.25264485]
[1748619885556,0.09763749,105680.0,105670.0,1.24318179]
[1748619885754,0.09763749,105680.0,105670.0,1.23371864]
[1748619885967,0.08817524,105680.0,105670.0,1.23371864]
[1748619887715,0.08817524,105680.0,105670.0,1.24872816]
[1748619887919,0.08817524,105680.0,105670.0,1.23926492]
[1748619888120,0.0787129,105680.0,105670.0,1.23926492]
[1748619888319,0.0787129,105680.0,105670.0,0.78857193]
[1748619888522,0.0787129,105680.0,105670.0,0.47191193]
[1748619888732,0.0947129,105680.0,105670.0,0.55313108]
[1748619889157,0.0947129,105680.0,105670.0,0.53812156]
[1748619891332,0.0547129,105680.0,105670.0,0.53812156]
[1748619894299,0.0547129,105680.0,105670.0,0.44236156]
[1748619898431,0.0147129,105680.0,105670.0,0.44236156]
[1748619898663,0.20396346,105680.0,105670.0,0.10236156]
[1748619898869,0.21986346,105680.0,105670.0,0.44236156]
[1748619899811,0.20396346,105680.0,105670.0,0.44236156]
[1748619900396,0.21906346,105680.0,105670.0,0.01130761]
[1748619900805,0.20396346,105680.0,105670.0,0.01130761]
[1748619901006,0.18925056,105680.0,105670.0,1.20225882]
[1748619901205,0.18928909,105700.0,105680.0,0.20379141]
[1748619901448,0.1986942,105690.0,105680.0,1.0809526]
[1748619901668,0.1986942,105690.0,105680.0,0.4773948]
[1748619902063,0.1986942,105690.0,105680.0,0.47316241]
[1748619902266,0.1986942,105690.0,105680.0,0.45686241]
[1748619902466,0.2144942,105690.0,105680.0,0.44232156]
[1748619903734,0.2154942,105690.0,105680.0,0.44232156]
[1748619903936,0.2144942,105690.0,105680.0,0.44232156]
[1748619904139,0.2144942,105690.0,105680.0,0.43105395]
[1748619904342,0.2144942,105690.0,105680.0,0.43205395]
[1748619908440,0.2144942,105690.0,105680.0,0.09205395]
[1748619908652,0.1986942,105690.0,105680.0,0.09205395]
[1748619910169,0.2300942,105690.0,105680.0,0.09205395]
[1748619911634,0.2142942,105690.0,105680.0,0.09205395]
[1748619912305,0.2293942,105690.0,105680.0,0.09205395]
[1748619913582,0.2142942,105690.0,105680.0,0.09205395]
[1748619918538,0.1986942,105690.0,105680.0,0.09205395]
[1748619921492,0.1986942,105690.0,105680.0,0.10735395]
[1748619921693,0.1986942,105690.0,105680.0,0.12295395]
[1748619922425,0.1986942,105690.0,105680.0,0.10735395]
[1748619924358,0.1986942,105690.0,105680.0,0.09205395]
[1748619924359,0.2142942,105690.0,105680.0,0.09205395]
[1748619924748,0.1986942,105690.0,105680.0,0.09205395]
[1748619928320,0.1986942,105690.0,105680.0,0.10755395]
[1748619928516,0.1986942,105690.0,105680.0,0.12305395]
[1748619929575,0.1986942,105690.0,105680.0,0.15034925]
[1748619929791,0.1986942,105690.0,105680.0,0.13275041]
[1748619929997,0.2308942,105690.0,105680.0,0.01069646]
[1748619931241,0.2308942,105690.0,105680.0,0.02829399]
[1748619931450,0.2308942,105690.0,105680.0,0.01069646]
[1748619931653,0.2151942,105690.0,105680.0,0.01069646]
[1748619932303,0.2151942,105690.0,105680.0,0.02829416]
[1748619932502,0.2151942,105690.0,105680.0,0.01069646]
[1748619932915,0.1986942,105690.0,105680.0,0.02829424]
[1748619933118,0.1986942,105690.0,105680.0,0.02829386]
[1748619933550,0.1986942,105690.0,105680.0,0.02829356]
[1748619933963,0.1986942,105690.0,105680.0,0.01069646]
[1748619934169,0.2140942,105690.0,105680.0,0.01069646]
[1748619934373,0.2140942,105690.0,105680.0,0.02829371]
[1748619934582,0.2140942,105690.0,105680.0,0.0282937]
[1748619934783,0.1986942,105690.0,105680.0,0.0282937]
[1748619935022,0.1986942,105690.0,105680.0,0.02829251]
[1748619935234,0.1986942,105690.0,105680.0,0.01069646]
[1748619935436,0.1986942,105690.0,105680.0,0.0282916]
[1748619935638,0.1986942,105690.0,105680.0,0.01069646]
[1748619935869,0.1986942,105690.0,105680.0,0.02829119]
[1748619936297,0.1986942,105690.0,105680.0,0.02829117]
[1748619936500,0.1986942,105690.0,105680.0,0.0282911]
[1748619936969,0.1986942,105690.0,105680.0,0.15144505]
[1748619937182,0.1986942,105690.0,105680.0,0.1514437]
[1748619937592,0.1986942,105690.0,105680.0,0.15144282]
[1748619937995,0.1986942,105690.0,105680.0,0.15144415]
[1748619938432,0.1986942,105690.0,105680.0,0.15144448]
[1748619938633,0.1986942,105690.0,105680.0,0.13385041]
[1748619939652,0.1986942,105690.0,105680.0,0.15144657]
[1748619939855,0.1986942,105690.0,105680.0,0.13385041]
[1748619940054,0.1986942,105690.0,105680.0,0.15144343]
[1748619940678,0.1986942,105690.0,105680.0,0.13385041]
[1748619940883,0.1986942,105690.0,105680.0,0.15144555]
[1748619941364,0.1986942,105690.0,105680.0,0.13385041]
[1748619941710,0.1986942,105690.0,105680.0,0.15144685]
[1748619942225,0.1986942,105690.0,105680.0,0.13385041]
[1748619942642,0.1986942,105690.0,105680.0,0.15144856]
[1748619942859,0.1986942,105690.0,105680.0,0.13385041]
[1748619943072,0.1986942,105690.0,105680.0,0.15144835]
[1748619944242,0.1986942,105690.0,105680.0,0.15144816]
[1748619944531,0.1986942,105690.0,105680.0,0.13554816]
[1748619944741,0.1986942,105690.0,105680.0,0.11795041]
[1748619944942,0.1986942,105690.0,105680.0,0.1355481]
[1748619945269,0.1986942,105690.0,105680.0,0.13554801]
[1748619945627,0.1986942,105690.0,105680.0,0.11795041]
[1748619946033,0.1986942,105690.0,105680.0,0.11934827]
[1748619947160,0.1986942,105690.0,105680.0,0.11935042]
[1748619947382,0.1986942,105690.0,105680.0,0.11835041]
[1748619947544,0.1986942,105690.0,105680.0,0.11935101]
[1748619948892,0.1986942,105690.0,105680.0,0.11935445]
[1748619949100,0.1986942,105690.0,105680.0,0.10175041]
[1748619949245,0.1986942,105690.0,105680.0,0.11935336]
[1748619949446,0.1986942,105690.0,105680.0,0.11935299]
[1748619949656,0.2149942,105690.0,105680.0,0.119353]
[1748619949876,0.1986942,105690.0,105680.0,0.119353]
[1748619950128,0.1986942,105690.0,105680.0,0.11934892]
[1748619950547,0.1986942,105690.0,105680.0,0.11934858]
[1748619950747,0.2149942,105690.0,105680.0,0.11934817]
[1748619950968,0.2149942,105690.0,105680.0,0.10175041]
[1748619951832,0.2149942,105690.0,105680.0,0.11934965]
[1748619951833,0.1986942,105690.0,105680.0,0.11934965]
[1748619952065,0.1986942,105690.0,105680.0,0.10175041]
[1748619952244,0.2299942,105690.0,105680.0,0.10175041]
[1748619952460,0.2299942,105690.0,105680.0,0.01069646]
[1748619952668,0.2299942,105690.0,105680.0,0.02829779]
[1748619952880,0.2299942,105690.0,105680.0,0.01069646]
[1748619953331,0.19872393,105700.0,105690.0,0.22063266]
[1748619953546,4.889e-05,105700.0,105690.0,2.64486338]
[1748619953757,4.889e-05,105700.0,105690.0,2.66244683]
[1748619953972,4.889e-05,105700.0,105690.0,5.45811411]
[1748619954226,0.01130562,105710.0,105700.0,2.36769372]
[1748619954440,0.0378339,105720.0,105710.0,0.58907529]
[1748619954678,0.0378339,105720.0,105710.0,1.52529486]
[1748619954679,0.23652042,105720.0,105710.0,1.52529486]
[1748619954913,0.23652042,105720.0,105710.0,1.52529404]
[1748619954914,0.22706228,105720.0,105710.0,1.52529404]
[1748619955176,4.889e-05,105720.0,105710.0,2.85876018]
[1748619955382,0.21760307,105720.0,105710.0,2.90284925]
[1748619955589,0.22706201,105720.0,105710.0,2.06220177]
[1748619955791,0.03788305,105720.0,105710.0,2.07166098]
[1748619956076,0.03788305,105720.0,105710.0,2.0652946]
[1748619956528,0.02842411,105720.0,105710.0,2.08452735]
[1748619956738,0.03788287,105720.0,105710.0,2.07506814]
[1748619956958,0.21760413,105720.0,105710.0,1.72372652]
[1748619957204,0.21760413,105720.0,105710.0,1.54523577]
[1748619957420,0.21760413,105720.0,105710.0,1.55469543]
[1748619957628,0.20814546,105720.0,105710.0,1.04593917]
[1748619957831,0.20814546,105720.0,105710.0,0.90633111]
[1748619958796,0.20814546,105720.0,105710.0,0.57946755]
[1748619960415,0.20814546,105720.0,105710.0,0.56306755]
[1748619960643,0.20814546,105720.0,105710.0,0.46782755]
[1748619960847,0.20814546,105720.0,105710.0,0.56306755]
[1748619961647,0.20814546,105720.0,105710.0,0.59456755]
[1748619962345,0.20814546,105720.0,105710.0,0.57946755]
[1748619962724,0.20814546,105720.0,105710.0,0.46782755]
[1748619963046,0.20814546,105720.0,105710.0,0.56306755]
[1748619963249,0.20814546,105720.0,105710.0,0.46782755]
[1748619963381,0.20814546,105720.0,105710.0,0.43405395]
[1748619964020,0.22414546,105720.0,105710.0,0.343]
[1748619964255,0.22414546,105720.0,105710.0,0.003]
[1748619965581,0.24004546,105720.0,105710.0,0.003]
[1748619965787,0.19865651,105710.0,105700.0,0.33777]
[1748619965998,0.19865651,105710.0,105700.0,0.44770187]
[1748619967126,0.19865651,105710.0,105700.0,0.45070187]
[1748619967257,0.19865651,105710.0,105700.0,0.45370187]
[1748619967665,0.21525651,105710.0,105700.0,0.43482395]
[1748619968504,0.18921475,105700.0,105680.0,0.10148633]
[1748619968743,0.19869411,105690.0,105680.0,0.10075041]
[1748619969162,0.19869411,105690.0,105680.0,0.44075041]
[1748619969496,0.15869411,105690.0,105680.0,0.44075041]
[1748619969692,0.16815556,105690.0,105680.0,0.44075041]
[1748619970130,0.16815556,105690.0,105680.0,0.45957685]
[1748619970314,0.16815556,105690.0,105680.0,0.46057685]
[1748619970715,0.16815556,105690.0,105680.0,0.45957685]
[1748619970953,0.16815556,105690.0,105680.0,0.44075041]
[1748619971182,0.16815556,105690.0,105680.0,0.10075041]
[1748619972343,0.18395556,105690.0,105680.0,0.10075041]
[1748619973252,0.16815556,105690.0,105680.0,0.10075041]
[1748619975546,0.16815556,105690.0,105680.0,0.11695041]
[1748619976821,0.12815556,105690.0,105680.0,0.14965653]
[1748619977493,0.18921475,105700.0,105690.0,0.59399668]
[1748619977723,0.21759587,105700.0,105690.0,1.24038096]
[1748619978141,0.2270566,105700.0,105690.0,1.24038096]
[1748619978351,0.01892048,105700.0,105690.0,1.24038096]
[1748619978563,0.21759578,105700.0,105690.0,1.23091996]
[1748619978814,0.01046011,105700.0,105690.0,1.24984214]
[1748619979038,0.03784132,105700.0,105690.0,1.24984214]
[1748619979243,0.04730196,105700.0,105690.0,1.24984214]
[1748619979452,0.02838077,105700.0,105690.0,1.24984214]
[1748619979654,0.03784141,105700.0,105690.0,1.24984223]
[1748619979855,0.03784141,105700.0,105690.0,1.2498416]
[1748619980063,0.22705616,105700.0,105690.0,1.23091951]
[1748619980266,0.03784141,105700.0,105690.0,1.2403806]
[1748619980497,0.04730214,105700.0,105690.0,1.2403806]
[1748619980730,0.20813612,105700.0,105690.0,0.1368948]
[1748619980940,0.20813612,105700.0,105690.0,0.1214948]
[1748619981151,0.20813612,105700.0,105690.0,0.09105395]
[1748619982851,0.20813612,105700.0,105690.0,0.10859903]
[1748619983057,0.20813612,105700.0,105690.0,0.10859948]
[1748619983684,0.16813612,105700.0,105690.0,0.10859948]
[1748619983905,0.18353612,105700.0,105690.0,0.10860044]
[1748619984123,0.68353612,105700.0,105690.0,0.10860044]
[1748619984330,0.20817498,105680.0,105670.0,0.04497959]
[1748619984535,0.20817498,105680.0,105670.0,0.15358462]
[1748619984962,0.20817498,105680.0,105670.0,0.15358605]
[1748619985197,0.20817498,105680.0,105670.0,0.10864655]
[1748619985423,0.20817498,105680.0,105670.0,0.1231874]
[1748619985634,0.20817498,105680.0,105670.0,0.10869501]
[1748619985857,0.20817498,105680.0,105670.0,0.10568369]
[1748619986066,0.22317498,105680.0,105670.0,0.10869537]